[Event "Estonian Chess Championship 2021"]
[Site "Tallinn, Paul Keres Chess House, Estonia"]
[Date "2021.12.11"]
[Round "1.5"]
[White "Volodin, Aleksandr"]
[Black "Shishkov, Andrei"]
[Result "1-0"]
[TimeControl "90 minutes for first 40 moves and 15 min. for the rest of the game with 30 sec."]
[WhiteTitle "GM"]
[BlackTitle "IM"]
[WhiteFideId "4501950"]
[BlackFideId "4500563"]
[WhiteElo "2461"]
[BlackElo "2405"]

1. d4 {[%clk 01:30:22]} {[%emt 00:00:37]} Nf6 {[%clk 01:30:56]} {[%emt
00:00:04]} 2. g3 {[%clk 01:30:00]} {[%emt 00:00:52]} d5 {[%clk 01:30:48]}
{[%emt 00:00:38]} 3. Bg2 {[%clk 01:28:11]} {[%emt 00:02:19]} c6 {[%clk
01:28:42]} {[%emt 00:02:36]} 4. Nf3 {[%clk 01:14:01]} {[%emt 00:14:40]} Bg4
{[%clk 01:28:28]} {[%emt 00:00:43]} 5. O-O {[%clk 01:13:59]} {[%emt 00:00:32]}
e6 {[%clk 01:28:10]} {[%emt 00:00:48]} 6. Nbd2 {[%clk 01:13:07]} {[%emt
00:01:22]} Nbd7 {[%clk 01:25:06]} {[%emt 00:03:34]} 7. Re1 {[%clk 01:09:56]}
{[%emt 00:03:41]} Be7 {[%clk 01:18:31]} {[%emt 00:07:04]} 8. e4 {[%clk
01:10:13]} {[%emt 00:00:13]} dxe4 {[%clk 01:18:29]} {[%emt 00:00:33]} 9. Nxe4
{[%clk 01:10:38]} {[%emt 00:00:05]} Nxe4 {[%clk 01:17:37]} {[%emt 00:01:22]} 10.
Rxe4 {[%clk 01:11:02]} {[%emt 00:00:06]} Nf6 {[%clk 01:17:45]} {[%emt
00:00:21]} 11. Re1 {[%clk 01:11:14]} {[%emt 00:00:18]} O-O {[%clk 01:11:48]}
{[%emt 00:06:28]} 12. c3 {[%clk 01:11:12]} {[%emt 00:00:32]} Qb6 {[%clk
01:09:20]} {[%emt 00:02:58]} 13. Qb3 {[%clk 01:08:43]} {[%emt 00:02:58]} Rfd8
{[%clk 01:02:41]} {[%emt 00:07:10]} 14. Ne5 {[%clk 01:08:01]} {[%emt 00:01:11]}
Bf5 {[%clk 01:00:29]} {[%emt 00:02:42]} 15. Nc4 {[%clk 01:08:15]} {[%emt
00:00:15]} Qxb3 {[%clk 00:57:16]} {[%emt 00:03:44]} 16. axb3 {[%clk 01:08:38]}
{[%emt 00:00:06]} Nd5 {[%clk 00:56:50]} {[%emt 00:00:57]} 17. b4 {[%clk
01:05:59]} {[%emt 00:03:09]} a6 {[%clk 00:49:02]} {[%emt 00:08:18]} 18. Bd2
{[%clk 00:59:42]} {[%emt 00:06:46]} Kf8 {[%clk 00:46:55]} {[%emt 00:02:37]} 19.
Na5 {[%clk 00:54:26]} {[%emt 00:05:47]} Rd7 {[%clk 00:43:22]} {[%emt 00:04:02]}
20. Bf1 {[%clk 00:49:54]} {[%emt 00:05:02]} Rc7 {[%clk 00:35:43]} {[%emt
00:08:10]} 21. Nb3 {[%clk 00:49:41]} {[%emt 00:00:43]} Rd8 {[%clk 00:31:43]}
{[%emt 00:04:30]} 22. Nc5 {[%clk 00:47:34]} {[%emt 00:02:37]} h6 {[%clk
00:25:43]} {[%emt 00:06:31]} 23. h3 {[%clk 00:43:10]} {[%emt 00:04:53]} g5
{[%clk 00:23:20]} {[%emt 00:02:53]} 24. Bg2 {[%clk 00:39:25]} {[%emt 00:04:15]}
Bf6 {[%clk 00:18:02]} {[%emt 00:05:48]} 25. Re2 {[%clk 00:33:08]} {[%emt
00:06:47]} Re7 {[%clk 00:16:20]} {[%emt 00:02:12]} 26. Rae1 {[%clk 00:29:16]}
{[%emt 00:04:22]} Bg7 {[%clk 00:09:36]} {[%emt 00:07:15]} 27. Bc1 {[%clk
00:26:53]} {[%emt 00:02:53]} Ra8 {[%clk 00:06:22]} {[%emt 00:03:44]} 28. Kh2
{[%clk 00:25:03]} {[%emt 00:02:19]} b6 {[%clk 00:03:51]} {[%emt 00:03:02]} 29.
Ne4 {[%clk 00:24:09]} {[%emt 00:01:23]} a5 {[%clk 00:03:16]} {[%emt 00:01:05]}
30. bxa5 {[%clk 00:11:27]} {[%emt 00:13:13]} bxa5 {[%clk 00:03:35]} {[%emt
00:00:11]} 31. Nc5 {[%clk 00:07:44]} {[%emt 00:04:12]} Rb8 {[%clk 00:02:49]}
{[%emt 00:01:17]} 32. Be3 {[%clk 00:05:05]} {[%emt 00:03:08]} Rc8 {[%clk
00:01:49]} {[%emt 00:01:31]} 33. Bd2 {[%clk 00:01:25]} {[%emt 00:04:10]} Ra7
{[%clk 00:02:07]} {[%emt 00:00:12]} 34. Ra1 {[%clk 00:01:24]} {[%emt 00:00:30]}
Nb6 {[%clk 00:01:39]} {[%emt 00:00:58]} 35. Bc1 {[%clk 00:01:05]} {[%emt
00:00:49]} Bf6 {[%clk 00:01:25]} {[%emt 00:00:44]} 36. b3 {[%clk 00:00:38]}
{[%emt 00:00:57]} Nd5 {[%clk 00:01:29]} {[%emt 00:00:26]} 37. Bb2 {[%clk
00:00:32]} {[%emt 00:00:36]} Be7 {[%clk 00:01:43]} {[%emt 00:00:16]} 38. c4
{[%clk 00:00:32]} {[%emt 00:00:31]} Nb4 {[%clk 00:01:15]} {[%emt 00:00:58]} 39.
Bc3 {[%clk 00:00:47]} {[%emt 00:00:14]} Rca8 {[%clk 00:00:46]} {[%emt
00:00:59]} 40. Rd2 {[%clk 00:15:34]} {[%emt 00:00:43]} Rb8 {[%clk 00:15:37]}
{[%emt 00:00:40]} 41. Rxa5 {[%clk 00:12:58]} {[%emt 00:03:06]} Bxc5 {[%clk
00:14:19]} {[%emt 00:01:48]} 42. Rxc5 {[%clk 00:11:45]} {[%emt 00:01:42]} Na6
{[%clk 00:10:04]} {[%emt 00:04:45]} 43. Ra5 {[%clk 00:08:59]} {[%emt 00:03:16]}
Rxb3 {[%clk 00:09:04]} {[%emt 00:01:31]} 44. Ba1 {[%clk 00:09:07]} {[%emt
00:00:21]} Bd3 {[%clk 00:08:49]} {[%emt 00:00:45]} 45. Ra4 {[%clk 00:05:37]}
{[%emt 00:04:00]} Ra8 {[%clk 00:03:05]} {[%emt 00:06:13]} 46. Rda2 {[%clk
00:04:05]} {[%emt 00:02:02]} Rb6 {[%clk 00:03:28]} {[%emt 00:00:07]} 47. R2a3
{[%clk 00:03:30]} {[%emt 00:01:05]} Be2 {[%clk 00:02:07]} {[%emt 00:01:52]} 48.
Bc3 {[%clk 00:02:58]} {[%emt 00:01:01]} Bd1 {[%clk 00:01:21]} {[%emt 00:01:15]}
49. Ra5 {[%clk 00:02:52]} {[%emt 00:00:36]} Be2 {[%clk 00:00:57]} {[%emt
00:00:55]} 50. R3a4 {[%clk 00:01:55]} {[%emt 00:01:27]} Ke7 {[%clk 00:00:41]}
{[%emt 00:00:46]} 51. Bd2 {[%clk 00:01:20]} {[%emt 00:01:05]} Rb3 {[%clk
00:00:31]} {[%emt 00:00:41]} 52. Rxa6 {[%clk 00:01:32]} {[%emt 00:00:18]} 1-0

[Event "Estonian Chess Championship 2021"]
[Site "Tallinn, Paul Keres Chess House, Estonia"]
[Date "2021.12.12"]
[Round "2.1"]
[White "Kanep, Meelis"]
[Black "Shishkov, Andrei"]
[Result "1/2-1/2"]
[TimeControl "90 minutes for first 40 moves and 15 min. for the rest of the game with 30 sec."]
[WhiteTitle "GM"]
[BlackTitle "IM"]
[WhiteFideId "4501047"]
[BlackFideId "4500563"]
[WhiteElo "2433"]
[BlackElo "2405"]

1. Nf3 {[%clk 01:30:52]} {[%emt 00:00:06]} Nf6 {[%clk 01:30:55]} {[%emt
00:00:06]} 2. c4 {[%clk 01:31:01]} {[%emt 00:00:21]} e6 {[%clk 01:31:19]}
{[%emt 00:00:07]} 3. g3 {[%clk 01:31:09]} {[%emt 00:00:22]} d5 {[%clk
01:31:39]} {[%emt 00:00:10]} 4. Bg2 {[%clk 01:31:19]} {[%emt 00:00:19]} d4
{[%clk 01:30:53]} {[%emt 00:01:17]} 5. O-O {[%clk 01:26:38]} {[%emt 00:05:11]}
c5 {[%clk 01:31:07]} {[%emt 00:00:16]} 6. e3 {[%clk 01:22:40]} {[%emt
00:04:29]} Nc6 {[%clk 01:31:06]} {[%emt 00:00:31]} 7. exd4 {[%clk 01:21:53]}
{[%emt 00:01:16]} cxd4 {[%clk 01:31:31]} {[%emt 00:00:05]} 8. d3 {[%clk
01:22:16]} {[%emt 00:00:06]} Bd6 {[%clk 01:21:29]} {[%emt 00:10:32]} 9. Bg5
{[%clk 01:15:54]} {[%emt 00:06:52]} h6 {[%clk 01:20:44]} {[%emt 00:01:16]} 10.
Bxf6 {[%clk 01:16:17]} {[%emt 00:00:06]} Qxf6 {[%clk 01:21:13]} {[%emt
00:00:02]} 11. Nbd2 {[%clk 01:16:24]} {[%emt 00:00:23]} Qd8 {[%clk 01:19:26]}
{[%emt 00:02:17]} 12. a3 {[%clk 01:11:05]} {[%emt 00:05:49]} a5 {[%clk
01:16:57]} {[%emt 00:02:59]} 13. Rc1 {[%clk 01:06:41]} {[%emt 00:04:53]} O-O
{[%clk 01:13:36]} {[%emt 00:03:53]} 14. c5 {[%clk 01:04:15]} {[%emt 00:02:55]}
Bc7 {[%clk 01:08:12]} {[%emt 00:05:55]} 15. Re1 {[%clk 00:57:26]} {[%emt
00:07:18]} e5 {[%clk 01:00:24]} {[%emt 00:08:19]} 16. Nc4 {[%clk 00:49:44]}
{[%emt 00:08:12]} Re8 {[%clk 00:57:47]} {[%emt 00:03:07]} 17. Nfd2 {[%clk
00:40:50]} {[%emt 00:09:24]} f5 {[%clk 00:43:48]} {[%emt 00:14:30]} 18. b4
{[%clk 00:40:14]} {[%emt 00:01:06]} axb4 {[%clk 00:40:08]} {[%emt 00:04:10]} 19.
axb4 {[%clk 00:40:38]} {[%emt 00:00:06]} Nxb4 {[%clk 00:25:51]} {[%emt
00:14:48]} 20. Qb3 {[%clk 00:40:31]} {[%emt 00:00:36]} Na6 {[%clk 00:24:54]}
{[%emt 00:01:28]} 21. Nxe5+ {[%clk 00:35:21]} {[%emt 00:05:39]} Kh7 {[%clk
00:24:20]} {[%emt 00:01:04]} 22. f4 {[%clk 00:33:23]} {[%emt 00:02:28]} Rb8
{[%clk 00:20:11]} {[%emt 00:04:40]} 23. Ndf3 {[%clk 00:25:02]} {[%emt
00:08:51]} Be6 {[%clk 00:17:55]} {[%emt 00:02:47]} 24. Qa4 {[%clk 00:21:08]}
{[%emt 00:04:24]} Ba5 {[%clk 00:18:02]} {[%emt 00:00:23]} 25. Re2 {[%clk
00:16:04]} {[%emt 00:05:33]} Bc3 {[%clk 00:18:08]} {[%emt 00:00:24]} 26. c6
{[%clk 00:15:38]} {[%emt 00:00:56]} Nc5 {[%clk 00:16:54]} {[%emt 00:01:44]} 27.
Qd1 {[%clk 00:10:31]} {[%emt 00:05:38]} Qd6 {[%clk 00:11:56]} {[%emt 00:05:28]}
28. cxb7 {[%clk 00:07:41]} {[%emt 00:03:20]} Nxb7 {[%clk 00:11:57]} {[%emt
00:00:29]} 1/2-1/2

[Event "Estonian Chess Championship 2021"]
[Site "Tallinn, Paul Keres Chess House, Estonia"]
[Date "2021.12.12"]
[Round "2.2"]
[White "Soot, Margus"]
[Black "Volodin, Aleksandr"]
[Result "0-1"]
[TimeControl "90 minutes for first 40 moves and 15 min. for the rest of the game with 30 sec."]
[BlackTitle "GM"]
[WhiteFideId "4501160"]
[BlackFideId "4501950"]
[WhiteElo "2117"]
[BlackElo "2461"]

1. Nf3 {[%clk 01:30:56]} {[%emt 00:00:03]} d5 {[%clk 01:23:54]} {[%emt
00:07:03]} 2. e3 {[%clk 01:31:00]} {[%emt 00:00:30]} Nf6 {[%clk 01:18:47]}
{[%emt 00:05:37]} 3. b3 {[%clk 01:31:02]} {[%emt 00:00:29]} Bf5 {[%clk
01:17:55]} {[%emt 00:01:21]} 4. Bb2 {[%clk 01:31:07]} {[%emt 00:00:25]} e6
{[%clk 01:17:51]} {[%emt 00:00:34]} 5. Be2 {[%clk 01:30:44]} {[%emt 00:00:53]}
h6 {[%clk 01:17:41]} {[%emt 00:00:40]} 6. O-O {[%clk 01:30:52]} {[%emt
00:00:22]} Be7 {[%clk 01:11:34]} {[%emt 00:06:37]} 7. c4 {[%clk 01:27:57]}
{[%emt 00:03:24]} O-O {[%clk 01:10:38]} {[%emt 00:01:27]} 8. Nc3 {[%clk
01:27:26]} {[%emt 00:01:02]} Nbd7 {[%clk 01:03:07]} {[%emt 00:08:00]} 9. d4
{[%clk 01:26:24]} {[%emt 00:01:31]} c6 {[%clk 00:59:58]} {[%emt 00:03:40]} 10.
Bd3 {[%clk 01:20:19]} {[%emt 00:06:35]} Bxd3 {[%clk 00:59:31]} {[%emt
00:00:56]} 11. Qxd3 {[%clk 01:20:47]} {[%emt 00:00:02]} a5 {[%clk 00:59:03]}
{[%emt 00:00:59]} 12. Rac1 {[%clk 01:17:13]} {[%emt 00:04:03]} a4 {[%clk
00:52:07]} {[%emt 00:07:27]} 13. Rfd1 {[%clk 01:11:29]} {[%emt 00:06:13]} axb3
{[%clk 00:47:33]} {[%emt 00:05:04]} 14. axb3 {[%clk 01:07:45]} {[%emt
00:04:15]} Qb6 {[%clk 00:47:40]} {[%emt 00:00:23]} 15. Qc2 {[%clk 01:05:16]}
{[%emt 00:02:59]} Qb4 {[%clk 00:46:26]} {[%emt 00:01:45]} 16. Nd2 {[%clk
00:59:39]} {[%emt 00:06:06]} Nb6 {[%clk 00:37:07]} {[%emt 00:09:50]} 17. c5
{[%clk 00:29:48]} {[%emt 00:30:21]} Nbd7 {[%clk 00:37:30]} {[%emt 00:00:06]} 18.
Ra1 {[%clk 00:28:14]} {[%emt 00:02:05]} Rfb8 {[%clk 00:37:48]} {[%emt
00:00:12]} 19. Na2 {[%clk 00:27:05]} {[%emt 00:01:38]} Qa5 {[%clk 00:38:04]}
{[%emt 00:00:15]} 20. Bc3 {[%clk 00:27:28]} {[%emt 00:00:07]} Qc7 {[%clk
00:38:10]} {[%emt 00:00:23]} 21. Nb4 {[%clk 00:27:50]} {[%emt 00:00:09]} e5
{[%clk 00:37:40]} {[%emt 00:01:00]} 22. dxe5 {[%clk 00:24:10]} {[%emt
00:04:10]} Nxe5 {[%clk 00:37:30]} {[%emt 00:00:39]} 23. Bd4 {[%clk 00:24:04]}
{[%emt 00:00:36]} Re8 {[%clk 00:32:03]} {[%emt 00:05:58]} 24. h3 {[%clk
00:22:17]} {[%emt 00:02:17]} Bf8 {[%clk 00:29:40]} {[%emt 00:02:53]} 25. Nd3
{[%clk 00:18:24]} {[%emt 00:04:23]} Nfd7 {[%clk 00:28:13]} {[%emt 00:01:57]} 26.
Nxe5 {[%clk 00:17:23]} {[%emt 00:01:30]} Nxe5 {[%clk 00:28:17]} {[%emt
00:00:26]} 27. Qc3 {[%clk 00:17:13]} {[%emt 00:00:40]} Ng6 {[%clk 00:27:18]}
{[%emt 00:01:29]} 28. Nf3 {[%clk 00:17:09]} {[%emt 00:00:34]} Ne7 {[%clk
00:25:03]} {[%emt 00:02:44]} 29. Rxa8 {[%clk 00:13:11]} {[%emt 00:04:29]} Rxa8
{[%clk 00:25:28]} {[%emt 00:00:05]} 30. Ra1 {[%clk 00:13:34]} {[%emt 00:00:07]}
Qc8 {[%clk 00:22:23]} {[%emt 00:03:34]} 31. Ra5 {[%clk 00:09:53]} {[%emt
00:04:11]} Qd8 {[%clk 00:22:28]} {[%emt 00:00:25]} 32. b4 {[%clk 00:09:43]}
{[%emt 00:00:40]} Rxa5 {[%clk 00:18:12]} {[%emt 00:04:46]} 33. bxa5 {[%clk
00:10:12]} {[%emt 00:00:01]} Ng6 {[%clk 00:15:53]} {[%emt 00:02:49]} 34. Qb4
{[%clk 00:10:29]} {[%emt 00:00:13]} Qa8 {[%emt 00:12:17]} 0-1

[Event "Estonian Chess Championship 2021"]
[Site "Tallinn, Paul Keres Chess House, Estonia"]
[Date "2021.12.12"]
[Round "2.3"]
[White "Kull, Tormi"]
[Black "Hansson, Markus"]
[Result "1/2-1/2"]
[TimeControl "90 minutes for first 40 moves and 15 min. for the rest of the game with 30 sec."]
[WhiteFideId "4510151"]
[BlackFideId "4505620"]
[WhiteElo "1753"]
[BlackElo "1662"]

1. e4 {[%clk 01:30:58]} {[%emt 00:00:01]} e6 {[%clk 01:30:48]} {[%emt
00:00:12]} 2. d4 {[%clk 01:31:23]} {[%emt 00:00:06]} d5 {[%clk 01:31:14]}
{[%emt 00:00:04]} 3. exd5 {[%clk 01:31:47]} {[%emt 00:00:06]} exd5 {[%clk
01:31:11]} {[%emt 00:00:33]} 4. Nc3 {[%clk 01:32:13]} {[%emt 00:00:05]} Bf5
{[%clk 01:29:15]} {[%emt 00:02:25]} 5. Bf4 {[%clk 01:26:42]} {[%emt 00:06:01]}
c6 {[%clk 01:28:18]} {[%emt 00:01:26]} 6. Bd3 {[%clk 01:26:11]} {[%emt
00:01:01]} Bxd3 {[%clk 01:26:12]} {[%emt 00:02:36]} 7. Qxd3 {[%clk 01:26:35]}
{[%emt 00:00:06]} Bd6 {[%clk 01:24:44]} {[%emt 00:01:58]} 8. Bg3 {[%clk
01:26:28]} {[%emt 00:00:38]} Ne7 {[%clk 01:19:38]} {[%emt 00:05:37]} 9. Nf3
{[%clk 01:25:54]} {[%emt 00:01:03]} O-O {[%clk 01:00:11]} {[%emt 00:19:56]} 10.
O-O {[%clk 01:24:49]} {[%emt 00:01:36]} Bxg3 {[%clk 00:59:46]} {[%emt
00:00:55]} 11. hxg3 {[%clk 01:24:35]} {[%emt 00:00:43]} Ng6 {[%clk 00:59:24]}
{[%emt 00:00:52]} 12. Rae1 {[%clk 01:20:44]} {[%emt 00:04:20]} Nd7 {[%clk
00:58:34]} {[%emt 00:01:21]} 13. g4 {[%clk 01:18:46]} {[%emt 00:02:28]} Qc7
{[%clk 00:52:20]} {[%emt 00:06:44]} 14. g3 {[%clk 01:18:22]} {[%emt 00:00:54]}
Rfe8 {[%clk 00:45:05]} {[%emt 00:07:45]} 15. Kg2 {[%clk 01:17:23]} {[%emt
00:01:28]} Ndf8 {[%clk 00:44:53]} {[%emt 00:00:42]} 16. Qd2 {[%clk 01:14:12]}
{[%emt 00:03:41]} Qd7 {[%clk 00:44:34]} {[%emt 00:00:49]} 17. Nh2 {[%clk
01:13:49]} {[%emt 00:00:51]} Rxe1 {[%clk 00:44:18]} {[%emt 00:00:47]} 18. Rxe1
{[%clk 01:14:07]} {[%emt 00:00:13]} Re8 {[%clk 00:44:42]} {[%emt 00:00:06]}
1/2-1/2

[Event "Estonian Chess Championship 2021"]
[Site "Tallinn, Paul Keres Chess House, Estonia"]
[Date "2021.12.12"]
[Round "2.4"]
[White "Andrijashkin, Deniss"]
[Black "Pedmanson, Albert"]
[Result "0-1"]
[TimeControl "90 minutes for first 40 moves and 15 min. for the rest of the game with 30 sec."]
[WhiteFideId "4504631"]
[BlackFideId "4505778"]
[WhiteElo "2036"]
[BlackElo "1888"]

1. Nf3 {[%clk 01:21:27]} {[%emt 00:09:31]} Nf6 {[%clk 01:30:36]} {[%emt
00:00:24]} 2. c4 {[%clk 01:21:36]} {[%emt 00:00:21]} e6 {[%clk 01:30:42]}
{[%emt 00:00:24]} 3. e3 {[%clk 01:16:46]} {[%emt 00:05:21]} d5 {[%clk
01:29:41]} {[%emt 00:01:29]} 4. b3 {[%clk 01:17:06]} {[%emt 00:00:11]} b6
{[%clk 01:29:01]} {[%emt 00:01:11]} 5. Bb2 {[%clk 01:12:10]} {[%emt 00:05:26]}
Bb7 {[%clk 01:28:56]} {[%emt 00:00:35]} 6. Nc3 {[%clk 01:09:33]} {[%emt
00:03:07]} c5 {[%clk 01:25:51]} {[%emt 00:03:36]} 7. d4 {[%clk 00:54:03]}
{[%emt 00:15:59]} Nbd7 {[%clk 01:22:57]} {[%emt 00:03:24]} 8. cxd5 {[%clk
00:45:55]} {[%emt 00:08:38]} exd5 {[%clk 01:16:37]} {[%emt 00:06:50]} 9. Bd3
{[%clk 00:39:30]} {[%emt 00:06:55]} Bd6 {[%clk 01:15:18]} {[%emt 00:01:48]} 10.
dxc5 {[%clk 00:32:42]} {[%emt 00:07:19]} bxc5 {[%clk 01:14:58]} {[%emt
00:00:51]} 11. Rc1 {[%clk 00:31:31]} {[%emt 00:01:41]} Rc8 {[%clk 01:14:35]}
{[%emt 00:00:52]} 12. Ne2 {[%clk 00:25:46]} {[%emt 00:06:15]} O-O {[%clk
01:11:53]} {[%emt 00:03:13]} 13. Ng3 {[%clk 00:25:34]} {[%emt 00:00:42]} Re8
{[%clk 01:11:42]} {[%emt 00:00:42]} 14. Nf5 {[%clk 00:15:29]} {[%emt 00:10:35]}
Ne5 {[%clk 01:11:27]} {[%emt 00:00:45]} 15. Bb1 {[%clk 00:13:46]} {[%emt
00:02:12]} d4 {[%clk 01:03:34]} {[%emt 00:08:25]} 16. N3h4 {[%clk 00:10:46]}
{[%emt 00:03:29]} Bc7 {[%clk 00:59:31]} {[%emt 00:04:33]} 17. O-O {[%clk
00:09:29]} {[%emt 00:01:47]} Ba6 {[%clk 00:46:17]} {[%emt 00:13:44]} 18. Re1
{[%clk 00:08:22]} {[%emt 00:01:36]} Neg4 {[%clk 00:46:01]} {[%emt 00:00:46]} 19.
Qf3 {[%clk 00:02:00]} {[%emt 00:06:52]} Bxh2+ {[%clk 00:44:34]} {[%emt
00:01:57]} 20. Kh1 {[%clk 00:02:26]} {[%emt 00:00:04]} Qc7 {[%clk 00:42:58]}
{[%emt 00:02:06]} 21. exd4 {[%clk 00:01:49]} {[%emt 00:01:07]} Bg1 {[%clk
00:39:29]} {[%emt 00:03:59]} 22. Re5 {[%emt 00:00:33]} Bxf2 {[%clk 00:37:39]}
{[%emt 00:02:18]} 23. Rcxc5 {[%clk 00:00:45]} {[%emt 00:01:34]} Rxe5 {[%clk
00:37:20]} {[%emt 00:00:49]} 24. Rxe5 {[%clk 00:00:39]} {[%emt 00:00:36]} Qc1+
{[%clk 00:37:33]} {[%emt 00:00:17]} 0-1